fUSD/lending_fUSD_20240912
["ID","MTS","AMOUNT","RATE_DAILY","PERIOD"]
[337856778,1726161049453,-2118.23,0.00014794,2]
[337856779,1726161049463,-6391.86,0.00014794,2]
[337856780,1726161049472,-630.54,0.00014794,2]
[337856781,1726161049481,-500.0,0.00014794,2]
[337856782,1726161049491,-2118.23,0.00014794,2]
[337856783,1726161049500,-566.91,0.00014794,2]
[337856784,1726161049509,-500.0,0.00014794,2]
[337856785,1726161049519,-6392.03031486,0.00014794,2]
[337856786,1726161049528,-630.54,0.00014794,2]
[337856787,1726161049537,-500.0,0.00014794,2]
[337856788,1726161049546,-500.0,0.00014794,2]
[337856789,1726161049556,-2118.23,0.00014794,2]
[337856790,1726161049565,-566.91,0.00014794,2]
[337856791,1726161049574,-500.0,0.00014794,2]
[337856792,1726161049583,-630.54,0.00014794,2]
[337856793,1726161049593,-500.0,0.00014794,2]
[337856794,1726161049611,-159.98423855,0.00014794,2]
[337856795,1726161049620,-566.91,0.00014794,2]
[337856796,1726161049629,-500.0,0.00014794,2]
[337856797,1726161049638,-630.54,0.00014794,2]
[337856798,1726161049648,-500.0,0.00014794,2]
[337856799,1726161049657,-2118.23,0.00014794,2]
[337856800,1726161049666,-566.91,0.00014794,2]
[337856801,1726161049676,-500.0,0.00014794,2]
[337856802,1726161049686,-630.54,0.00014794,2]
[337856803,1726161049695,-500.0,0.00014794,2]
[337856804,1726161049704,-2118.23,0.00014794,2]
[337856805,1726161049713,-566.91,0.00014794,2]
[337856806,1726161049722,-500.0,0.00014794,2]
[337856807,1726161049731,-500.0,0.00014794,2]
[337856808,1726161049740,-630.54,0.00014794,2]
[337856809,1726161049749,-2118.23,0.00014794,2]
[337856810,1726161049759,-500.0,0.00014794,2]
[337856811,1726161049768,-566.91,0.00014794,2]
[337856812,1726161049780,-500.0,0.00014794,2]
[337856813,1726161049789,-500.0,0.00014794,2]
[337856814,1726161049799,-630.54,0.00014794,2]
[337856815,1726161049810,-2118.23,0.00014794,2]
[337856816,1726161049820,-500.0,0.00014794,2]
[337856817,1726161049830,-500.0,0.00014794,2]
[337856818,1726161049841,-500.0,0.00014794,2]
[337856819,1726161049855,-566.91,0.00014794,2]
[337856820,1726161049863,-630.54,0.00014794,2]
[337856821,1726161049873,-2118.23,0.00014794,2]
[337856822,1726161049882,-500.0,0.00014794,2]
[337856823,1726161049891,-500.0,0.00014794,2]
[337856824,1726161049900,-566.91,0.00014794,2]
[337856825,1726161049909,-522.91368075,0.00014794,2]
[337856826,1726161049919,-630.54,0.00014794,2]
[337856827,1726161049928,-500.0,0.00014794,2]
[337856828,1726161049937,-2118.26441546,0.00014794,2]
[337856829,1726161049946,-500.0,0.00014794,2]
[337856830,1726161049956,-566.91,0.00014794,2]
[337856831,1726161049965,-630.54,0.00014794,2]
[337856832,1726161049975,-500.0,0.00014794,2]
[337856833,1726161049984,-500.0,0.00014794,2]
[337856834,1726161049993,-566.91,0.00014794,2]
[337856835,1726161050002,-630.54,0.00014794,2]
[337856836,1726161050011,-500.0,0.00014794,2]
[337856837,1726161050020,-500.0,0.00014794,2]
[337856838,1726161050030,-566.91,0.00014794,2]
[337856839,1726161050039,-630.65531133,0.00014794,2]
[337856840,1726161050049,-500.0,0.00014794,2]
[337856841,1726161050059,-566.91,0.00014794,2]
[337856842,1726161050072,-500.0,0.00014794,2]
[337856843,1726161050082,-500.0,0.00014794,2]
[337856844,1726161050093,-566.91,0.00014794,2]
[337856845,1726161050103,-4326.94,0.00014794,2]
[337856846,1726161050112,-500.0,0.00014794,2]
[337856847,1726161050121,-566.91,0.00014794,2]
[337856848,1726161050133,-4326.94,0.00014794,2]
[337856849,1726161050144,-566.91,0.00014794,2]
[337856850,1726161050155,-500.0,0.00014794,2]
[337856851,1726161050166,-566.91,0.00014794,2]
[337856852,1726161050176,-500.0,0.00014794,2]
[337856853,1726161050186,-500.0,0.00014794,2]
[337856854,1726161050196,-555.51163549,0.00014794,2]
[337856855,1726161050206,-566.91,0.00014794,2]
[337856856,1726161050217,-500.0,0.00014794,2]
[337856857,1726161050228,-500.0,0.00014794,2]
[337856858,1726161050238,-566.91,0.00014794,2]
[337856859,1726161050248,-500.0,0.00014794,2]
[337856860,1726161050257,-3171.31,0.00014794,2]
[337856861,1726161050266,-566.91,0.00014794,2]
[337856862,1726161050277,-500.0,0.00014794,2]
[337856863,1726161050287,-598.16252172,0.00014794,2]
[337856864,1726161050297,-566.91,0.00014794,2]
[337856865,1726161050307,-500.0,0.00014794,2]
[337856866,1726161050317,-3171.31,0.00014794,2]
[337856867,1726161050326,-566.91,0.00014794,2]
[337856868,1726161050336,-500.0,0.00014794,2]
[337856869,1726161050347,-3171.31,0.00014794,2]
[337856870,1726161050355,-4326.94,0.00014794,2]
[337856871,1726161050365,-566.91,0.00014794,2]
[337856872,1726161050373,-500.0,0.00014794,2]
[337856873,1726161050383,-3171.31,0.00014794,2]
[337856874,1726161050393,-566.91,0.00014794,2]
[337856875,1726161050403,-500.0,0.00014794,2]
[337856876,1726161050412,-4326.94,0.00014794,2]
[337856877,1726161050423,-3171.31,0.00014794,2]
[337856878,1726161050434,-567.1020069,0.00014794,2]
[337856879,1726161050443,-500.0,0.00014794,2]
[337856880,1726161050452,-4326.94,0.00014794,2]
[337856881,1726161050462,-3171.31,0.00014794,2]
[337856882,1726161050471,-4326.94,0.00014794,2]
[337856883,1726161050480,-3432.99541875,0.00014794,2]
[337856884,1726161051954,-516.35458125,0.00014794,2]
[337856885,1726161051963,-25.27335875,0.00014794,2]
[337856886,1726161051984,-486.40543206,0.00014794,2]
[337856887,1726161051996,-1007.248225,0.00014794,2]
[337856888,1726161052008,-581.82387818,0.00014794,2]
[337856889,1726161052020,-1070.55910601,0.00014794,2]
[337856890,1726161052030,-500.0,0.00014794,2]
[337856891,1726161052040,-1195.99041199,0.00014794,2]
[337856892,1726161052052,-3130.94958801,0.00014794,2]
[337856893,1726161052063,-500.0,0.00014794,2]
[337856894,1726161052074,-1682.21627659,0.00014794,2]
[337856895,1726161052087,-300.0,0.00014794,2]
[337856896,1726161052554,-1967.13372341,0.00014794,2]
[337856897,1726161052564,-2272.69741924,0.00014794,2]
[337856898,1726161052576,-898.61258076,0.00014794,2]
[337856899,1726161052586,-43.70371524,0.00014794,2]
[337856900,1726161052599,-548.79774281,0.00014794,2]
[337856901,1726161052611,-3734.43854195,0.00014794,2]
[337856902,1726161052620,-500.0,0.00014794,2]
[337856903,1726161052629,-3949.35,0.00014794,2]
[337856904,1726161052639,-3171.31,0.00014794,2]
[337856905,1726161052648,-4326.94,0.00014794,2]
[337856906,1726161052658,-524.8,0.00014794,2]
[337856907,1726161052667,-3949.35,0.00014794,2]
[337856908,1726161052677,-308.10145805,0.00014794,2]
[337856909,1726161052694,-2863.20854195,0.00014794,2]
[337856910,1726161052704,-4326.94,0.00014794,2]
[337856911,1726161052713,-3949.35,0.00014794,2]
[337856912,1726161052723,-3171.31,0.00014794,2]
[337856913,1726161052732,-925.83551698,0.00014794,2]
[337856914,1726161053408,-273.20557687,0.00014794,2]
[337856915,1726161053424,-562.6023957,0.00014794,2]
[337856916,1726161053435,-730.07140233,0.00014794,2]
[337856917,1726161053446,-652.62529538,0.00014794,2]
[337856918,1726161053456,-1182.59981274,0.00014794,2]
[337856919,1726161053465,-176.08743943,0.00014794,2]
[337856920,1726161053479,-2995.22256057,0.00014794,2]
[337856921,1726161053488,-3171.31,0.00014794,2]
[337856922,1726161053497,-4326.94,0.00014794,2]
[337856923,1726161053507,-3171.31,0.00014794,2]
[337856924,1726161053516,-500.0,0.00014794,2]
[337856925,1726161053526,-4221.2638944,0.00014794,2]
[337856926,1726161053971,-105.6761056,0.00014794,2]
[337856927,1726161053981,-628.34030913,0.00014794,2]
[337856928,1726161053994,-743.3523116,0.00014794,2]
[337856929,1726161054006,-943.31862009,0.00014794,2]
[337856930,1726161054018,-856.29875918,0.00014794,2]
[337856931,1726161054027,-500.0,0.00014794,2]
[337856932,1726161054038,-4326.94,0.00014794,2]
[337856933,1726161054048,-694.45,0.00014794,2]
[337856934,1726161054058,-3171.31,0.00014794,2]
[337856935,1726161054071,-500.0,0.00014794,2]
[337856936,1726161054080,-4326.94,0.00014794,2]
[337856937,1726161054090,-223.33254035,0.00014794,2]
[337856938,1726161054109,-471.11745965,0.00014794,2]
[337856939,1726161054118,-341.63013072,0.00014794,2]
[337856940,1726161054131,-2829.67986928,0.00014794,2]
[337856941,1726161054141,-500.0,0.00014794,2]
[337856942,1726161054150,-500.0,0.00014794,2]
[337856943,1726161054159,-3982.10443405,0.00014794,2]
[337856944,1726161054173,-344.83556595,0.00014794,2]
[337856945,1726161054183,-694.45,0.00014794,2]
[337856946,1726161054192,-834.77859843,0.00014794,2]
[337856947,1726161054206,-2336.53140157,0.00014794,2]
[337856948,1726161054216,-500.0,0.00014794,2]
[337856949,1726161054225,-4326.94,0.00014794,2]
[337856950,1726161054235,-694.45,0.00014794,2]
[337856951,1726161054244,-188.61560174,0.00014794,2]
[337856952,1726161054254,-3403.46299669,0.00014794,2]
[337856953,1726161054270,-635.39287192,0.00014794,2]
[337856954,1726161054281,-288.08413139,0.00014794,2]
[337856955,1726161054290,-500.0,0.00014794,2]
[337856956,1726161054300,-1822.10657114,0.00014794,2]
[337856957,1726161054341,-1349.20342886,0.00014794,2]
[337856958,1726161054351,-694.45,0.00014794,2]
[337856959,1726161054360,-1885.46020714,0.00014794,2]
[337856960,1726161054373,-2063.88979286,0.00014794,2]
[337856961,1726161054384,-1081.77057408,0.00014794,2]
[337856962,1726161054815,-154.05942592,0.00014794,2]
[337856963,1726161054825,-1729.65469657,0.00014794,2]
[337856964,1726161054837,-1460.13653223,0.00014794,2]
[337856965,1726161054848,-588.94,0.00014794,2]
[337856966,1726161054861,-548.2087712,0.00014794,2]
[337856967,1726161054872,-500.0,0.00014794,2]
[337856968,1726161054881,-3171.31,0.00014794,2]
[337856969,1726161054891,-1565.32193217,0.00014794,2]
[337856970,1726161054905,-1996.88135758,0.00014794,2]
[337856971,1726161057415,150.0,0.00011984,2]
[337856972,1726161057438,166.0695372,0.00011984,2]
[337856973,1726161057464,512.9804628,0.00011984,2]
[337856974,1726161063919,500.0,0.00010958,2]
[337856975,1726161069308,196.36,0.00010959,2]
[337856976,1726161082762,500.0,0.00010958,2]
[337856977,1726161083614,502.68368901,0.00010958,2]
[337856980,1726161354027,1050.0,0.00011,2]
[337856985,1726161572027,160.0,0.00010959,2]
[337856986,1726161758880,835.8,0.00011109,2]
[337856989,1726161929492,50493.58784983,0.000101,2]
[337856991,1726161951339,661.20756432,0.00010988,2]
[337856992,1726161954422,1042.6668699,6.94e-05,2]
[337857016,1726162080367,150.0,0.00012,2]
[337857017,1726162080390,9860.81767375,0.00012,2]
[337857018,1726162096541,226.54,0.00010959,2]
[337857019,1726162098248,154.97,0.00010959,2]
[337857027,1726162232344,-150.24,0.00012216,2]
[337857028,1726162232353,-142.51666261,0.000123,2]
[337857029,1726162232418,-358.28689627,0.000123,2]
[337857030,1726162232428,-202.17,0.00012355,2]
[337857031,1726162232438,-319.00782557,0.000126,4]
[337857032,1726162232450,-80.99217443,0.000126,4]
[337857040,1726162232668,-357.58802896,0.000127,4]
[337857041,1726162232680,-442.41197104,0.000127,4]
[337857042,1726162232690,-1300.0,0.000128,4]
[337857043,1726162232699,-250.0,0.00012876,2]
[337857044,1726162232708,-1700.0,0.000129,4]
[337857045,1726162232717,-324.83310722,0.000129,2]
[337857046,1726162232727,-165.67,0.00012946,2]
[337857047,1726162232736,-165.67,0.00012954,2]
[337857048,1726162232746,-285.0,0.00012961,2]
[337857049,1726162232755,-43.65029643,0.00012962,2]
[337857050,1726162232799,-2336.76970357,0.00012962,2]
[337857051,1726162232809,-165.67,0.00012962,2]
[337857052,1726162232818,-165.67,0.0001297,2]
[337857053,1726162232827,-165.67,0.00012978,2]
[337857054,1726162232837,-165.67,0.00012986,2]
[337857055,1726162232846,-174.28,0.00012986,2]
[337857056,1726162232855,-153.86,0.0001299,2]
[337857057,1726162232865,-153.86,0.0001299,2]
[337857058,1726162232874,-153.86,0.0001299,2]
[337857059,1726162232883,-153.86,0.0001299,2]
[337857060,1726162232892,-153.86,0.0001299,2]
[337857061,1726162232902,-153.86,0.0001299,2]
[337857062,1726162232912,-153.86,0.0001299,2]
[337857063,1726162232923,-153.86,0.0001299,2]
[337857064,1726162232932,-153.86,0.0001299,2]
[337857065,1726162232942,-153.86,0.0001299,2]
[337857066,1726162232952,-153.86,0.0001299,2]
[337857067,1726162232962,-153.86,0.0001299,2]
[337857068,1726162232971,-153.86,0.0001299,2]
[337857069,1726162232980,-153.86,0.0001299,2]
[337857070,1726162232990,-153.86,0.0001299,2]
[337857071,1726162232999,-165.67,0.00012994,2]
[337857072,1726162233008,-250.0,0.00012996,2]
[337857073,1726162233018,-150.0,0.00012999,2]
[337857074,1726162233027,-3207.83487368,0.00013,2]
[337857075,1726162233039,-2519.95441177,0.00013,2]
[337857079,1726162238459,-47123.49382601,0.00013,2]
[337857080,1726162238608,-668.52975339,0.00013,2]
[337857100,1726162240374,-443.15019024,0.00013,2]
[337857101,1726162240387,-7178.86548968,0.00013,2]
[337857102,1726162240436,-1128.25200002,0.00013,2]
[337857103,1726162240499,-1621.07562708,0.00013,2]
[337857432,1726162243919,-33810.9064025,0.00013,2]
[337857436,1726162243940,-374541.00218468,0.00013,2]
[337857437,1726162243950,-1100.0,0.00013,2]
[337857439,1726162243959,-180679.56429658,0.00013,2]
[337857442,1726162243978,-2094848.92341645,0.00013,2]
[337857445,1726162243989,-388.005,0.00013,2]
[337857577,1726162246363,-677.57587675,0.00013,2]
[337857578,1726162246426,-586.925,0.00013,2]
[337857579,1726162246439,-34665.0926168,0.00013,2]
[337857580,1726162246585,-3464.78695368,0.00013,2]
[337857581,1726162246599,-13115.02648936,0.00013,2]
[337857582,1726162246630,-692.17038355,0.00013,2]
[337857583,1726162246652,-259.18571279,0.00013,2]
[337857584,1726162246663,-3111.91375659,0.00013,2]
[337857585,1726162246680,-1208.0,0.00013,2]
[337857586,1726162246694,-335.30570427,0.00013,2]
[337857587,1726162304385,150.0,0.00011258,2]
[337857588,1726162304407,150.0,0.00011258,2]
[337857589,1726162304428,232.67818431,0.00011258,2]
[337857590,1726162304450,150.0,0.00011258,2]
[337857591,1726162304471,111.33181569,0.00011258,2]
[337857592,1726162372741,78.10009748,0.00010958,2]
[337857593,1726162372762,200.0,0.00010958,2]
[337857594,1726162372789,221.89990252,0.00010958,2]
[337857609,1726162433721,-781.29563324,0.000129,2]
[337857610,1726162433742,-250.0,0.00012916,2]
[337857611,1726162433762,-502.13313981,0.00012999,2]
[337857612,1726162433782,-300.0,0.00012999,2]
[337857613,1726162433802,-150.0,0.00012999,2]
[337857614,1726162433827,-14063.57122695,0.00013,2]
[337857615,1726162439270,500.0,0.00010958,2]
[337857618,1726162657060,151.94,0.00010959,2]
[337857619,1726162819898,179.8398969,0.00012,2]
[337857620,1726162819920,155.36,0.00012,2]
[337857621,1726162819944,150.0,0.00012,2]
[337857622,1726162819965,15.6001031,0.00012,2]
[337857623,1726162820014,139.7598969,0.00011063,2]
[337857624,1726162820041,622.3801031,0.00011063,2]
[337857625,1726162845392,500.0,0.00012,2]
[337857626,1726162856081,500.0,0.00012,2]
[337857627,1726162869488,500.0,0.00012,2]
[337857628,1726162895012,150.0,0.00012,2]
[337857629,1726162895036,350.0,0.00012,2]
[337857630,1726162909491,155.36,0.00012,2]
[337857631,1726162909518,214.82,0.00012,2]
[337857632,1726162917193,500.0,0.00012,2]
[337857637,1726163152923,159.48,0.00012146,2]
[337857638,1726163153138,159.48,0.00012161,2]
[337857639,1726163162080,1050.0,0.00011,2]
[337857640,1726163183603,194.74,0.0001204,2]
[337857644,1726163235074,457.55,0.00012051,2]
[337857648,1726163316296,-159.48,0.00012176,2]
[337857649,1726163316324,-1180.47,0.0001219,2]
[337857650,1726163316352,-159.48,0.00012191,2]
[337857651,1726163316382,-500.0,0.000122,2]
[337857652,1726163316410,-159.48,0.00012206,2]
[337857653,1726163316437,-250.0,0.00012217,2]
[337857654,1726163316464,-200.0,0.00012274,2]
[337857655,1726163316490,-250.0,0.00012276,2]
[337857656,1726163316518,-250.0,0.00012391,2]
[337857657,1726163316544,-277.56925789,0.000124,2]
[337857658,1726163320592,150.0,0.00010136,2]
[337857659,1726163320613,150.0,0.00010136,2]
[337857660,1726163320634,150.0,0.00010136,2]
[337857661,1726163320654,150.0,0.00010136,2]
[337857662,1726163320676,131.86,0.00010136,2]
[337857663,1726163338027,150.0,0.00011835,2]
[337857664,1726163338048,65.72,0.00011835,2]
[337857665,1726163404162,150.0,0.00012,5]
[337857666,1726163404183,150.0,0.00012,5]
[337857667,1726163404209,17700.0,0.00012,5]
[337857668,1726163424592,17486.04849445,0.00012,5]
[337857677,1726163431490,-150.0,0.00012338,2]
[337857678,1726163431500,-731.86,0.000124,2]
[337857679,1726163431510,-411.30074211,0.000124,2]
[337857680,1726163431519,-150.0,0.00012438,2]
[337857681,1726163431530,-169.22,0.00012461,2]
[337857682,1726163431541,-500.0,0.000125,2]
[337857683,1726163431550,-316.0695372,0.00012721,2]
[337857684,1726163431559,-300.0,0.00012899,2]
[337857685,1726163431569,-193.40085634,0.000129,2]
[337857686,1726163431578,-703.16606997,0.000129,2]
[337857687,1726163431588,-156.2770892,0.000129,2]
[337857688,1726163431598,-433.59947904,0.000129,2]
[337857689,1726163431607,-173.73,0.00012925,2]
[337857690,1726163431617,-161.0886343,0.00012973,2]
[337857691,1726163431626,-297.02,0.00012973,2]
[337857692,1726163431635,-152.0,0.0001298,2]
[337857693,1726163431644,-64903.42916684,0.0001299,2]
[337857694,1726163431656,-1040.054,0.0001299,2]
[337857712,1726163432027,-345810.31248072,0.0001299,2]
[337857713,1726163432039,-732.10144154,0.0001299,2]
[337857714,1726163432066,-3433.00066453,0.0001299,2]
[337857715,1726163432077,-168012.98049032,0.0001299,2]
[337857716,1726163432089,-8733.04087757,0.0001299,2]
[337857717,1726163432101,-2871.78515676,0.0001299,2]
[337857718,1726163432112,-3753.76120749,0.0001299,2]
[337857719,1726163432124,-2233.16988502,0.0001299,2]
[337857720,1726163432135,-10808.08059513,0.0001299,2]
[337857721,1726163432147,-280.66623049,0.0001299,2]
[337857722,1726163432168,-3094.63215291,0.0001299,2]
[337857723,1726163432180,-30389.27840015,0.0001299,2]
[337857724,1726163432250,-1245.568807,0.0001299,2]
[337857725,1726163432296,-991.2562858,0.0001299,2]
[337857726,1726163432307,-676.1,0.0001299,2]
[337857727,1726163432319,-2763.18092288,0.0001299,2]
[337857729,1726163437509,-4677.82886025,0.0001299,2]
[337857730,1726163437528,-10626.90037741,0.0001299,2]
[337857731,1726163437539,-11216.25702667,0.0001299,2]
[337857732,1726163437550,-10531.19074732,0.0001299,2]
[337857733,1726163437560,-1719.6339961,0.0001299,2]
[337857734,1726163437773,-269.085,0.0001299,2]
[337857735,1726163437797,-363.0910039,0.0001299,2]
[337857739,1726163437878,-152.19734,0.0001299,2]
[337857741,1726163437888,-152.0,0.0001299,2]
[337857743,1726163437898,-150.6868809,0.0001299,2]
[337857746,1726163437922,-1.3131191,0.0001299,2]
[337857748,1726163437935,-152.0,0.0001299,2]
[337857750,1726163437943,-152.0,0.0001299,2]
[337857752,1726163437953,-1634.13295947,0.00013,2]
[337857754,1726163437964,-607.0,0.00013,2]
[337857756,1726163437975,-305.07545363,0.00013,2]
[337857759,1726163437999,-316030.82970968,0.00013,2]
[337857761,1726163438009,-914304.81629916,0.00013,2]
[337857763,1726163438018,-920389.41611516,0.00013,2]
[337857765,1726163438029,-1427.2185654,0.00013,2]
[337857768,1726163439531,-1537.58516655,0.00013,2]
[337857769,1726163439558,-270.0949999,0.00013,2]
[337857792,1726163440056,-3658.79981162,0.00013,2]
[337857795,1726163440070,-485.755,0.00013,2]
[337857797,1726163440082,-27000.0,0.00013,2]
[337858102,1726163443177,-482.285006,0.00013,2]
[337858107,1726163443214,-5949.81,0.00013,2]
[337858309,1726163445660,-669.58337309,0.00013,2]
[337858325,1726163445895,-270.27,0.00013,2]
[337858328,1726163445921,-276.75,0.00013,2]
[337858392,1726163450761,1800.0,0.00012,5]
[337858393,1726163460066,150.0,0.00010959,2]
[337858394,1726163460089,150.0,0.00010959,2]
[337858395,1726163460111,161.15,0.00010959,2]
[337858396,1726163467444,150.0,0.000102,5]
[337858397,1726163467467,150.0,0.000102,5]
[337858398,1726163555936,150.0,0.00011835,2]
[337858399,1726163555957,100.0,0.00011835,2]
[337858400,1726163608606,136.22,0.00011835,2]
[337858401,1726163608627,150.0,0.00011835,2]
[337858402,1726163608648,111.07,0.00011835,2]
[337858405,1726163836072,500.0,0.0001421,120]
[337858406,1726163836124,500.0,0.0001421,120]
[337858407,1726163836554,500.0,0.0001331,30]
[337858408,1726163838197,205.92298041,0.0001421,120]
[337858409,1726163838594,500.0,0.0001421,120]
[337858411,1726163839423,500.0,0.0001331,30]
[337858412,1726163841001,680.93774086,0.0001421,120]
[337858413,1726163841036,565.49667503,0.0001421,120]
[337858414,1726163841070,500.0,0.0001421,120]
[337858415,1726163841098,500.0,0.0001421,120]
[337858416,1726163841130,500.7,0.0001421,120]
[337858417,1726163841159,500.0,0.0001421,120]
[337858418,1726163841234,500.0,0.0001421,120]
[337858419,1726163841269,271.25890498,0.0001421,120]
[337858420,1726163841366,500.0,0.0001421,120]
[337858421,1726163841690,500.0,0.0001421,120]
[337858422,1726163841787,500.0,0.0001421,120]
[337858423,1726163841837,500.0,0.0001421,120]
[337858425,1726163842145,500.0,0.0001421,120]
[337858427,1726163842249,621.51173502,0.0001331,30]
[337858428,1726163842334,500.0,0.0001421,120]
[337858429,1726163842622,500.0,0.0001421,120]
[337858430,1726163843086,500.0,0.0001421,120]
[337858431,1726163843409,513.75946985,0.0001421,120]
[337858432,1726163843434,500.0,0.0001421,120]
[337858433,1726163843543,500.0,0.0001421,120]
[337858434,1726163843832,500.0,0.0001421,120]
[337858435,1726163844035,500.0,0.0001421,120]
[337858436,1726163844320,500.0,0.0001421,120]
[337858438,1726163844575,500.0,0.0001421,120]
[337858439,1726163844821,500.0,0.0001421,120]
[337858440,1726163844967,500.0,0.0001421,120]
[337858441,1726163845030,500.0,0.0001421,120]
[337858442,1726163845280,500.0,0.0001421,120]
[337858443,1726163845306,500.0,0.0001421,120]
[337858444,1726163845421,500.0,0.0001331,30]
[337858445,1726163845497,500.0,0.0001421,120]
[337858446,1726163845812,500.0,0.0001421,120]
[337858447,1726163845848,500.0,0.0001331,30]
[337858448,1726163846047,500.0,0.0001421,120]
[337858449,1726163846328,500.0,0.0001331,30]
[337858450,1726163846804,500.0,0.0001331,30]
[337858451,1726163846839,500.0,0.0001421,120]
[337858452,1726163847021,500.0,0.0001421,120]
[337858453,1726163847349,500.0,0.0001421,120]
[337858454,1726163847375,500.0,0.0001421,120]
[337858455,1726163847432,500.0,0.0001331,30]
[337858456,1726163847506,500.0,0.0001331,30]
[337858457,1726163847842,500.0,0.0001421,120]
[337858458,1726163847869,500.0,0.0001331,30]
[337858459,1726163847963,500.0,0.0001331,30]
[337858460,1726163848047,500.0,0.0001331,30]
[337858461,1726163848321,500.0,0.0001421,120]
[337858462,1726163848391,500.0,0.0001331,30]
[337858463,1726163848465,500.0,0.0001331,30]
[337858464,1726163848951,500.0,0.0001331,30]
[337858465,1726163848990,500.0,0.0001331,30]
[337858466,1726163849358,500.0,0.0001421,120]
[337858467,1726163849452,630.96448478,0.0001331,30]
[337858468,1726163849477,500.0,0.0001331,30]
[337858469,1726163849853,500.0,0.0001421,120]
[337858470,1726163849931,500.0,0.0001331,30]
[337858471,1726163850398,500.0,0.0001421,120]
[337858472,1726163850764,500.0,0.0001331,30]
[337858473,1726163851605,500.0,0.0001421,120]
[337858474,1726163851824,500.0,0.0001331,30]
[337858475,1726163851941,500.0,0.0001421,120]
[337858476,1726163852436,500.0,0.0001421,120]
[337858477,1726163852462,500.0,0.0001331,30]
[337858478,1726163852933,500.0,0.0001331,30]
[337858479,1726163852965,500.0,0.0001331,30]
[337858480,1726163853131,38.93,0.00011059,2]
[337858481,1726163853152,197.06,0.00011059,2]
[337858482,1726163853179,438.01,0.00011059,2]
[337858483,1726163853403,500.0,0.0001331,30]
[337858484,1726163853445,500.0,0.0001331,30]
[337858485,1726163853887,550.70997274,0.0001331,30]
[337858486,1726163853917,500.0,0.0001331,30]
[337858487,1726163854378,500.0,0.0001331,30]
[337858488,1726163854848,500.0,0.0001331,30]
[337858489,1726163855330,500.0,0.0001331,30]
[337858490,1726163855823,500.0,0.0001331,30]
[337858491,1726163856313,500.0,0.0001331,30]
[337858492,1726163856882,500.0,0.0001331,30]
[337858493,1726163857356,500.0,0.0001331,30]
[337858494,1726163859123,763.29039265,0.0001331,30]
[337858496,1726163967647,151.95,0.00010959,2]
[337858500,1726164153530,718.88456684,0.0001421,120]
[337858501,1726164153684,457.87188021,0.0001421,120]
[337858505,1726164376778,657.88,0.00010485,2]
[337858515,1726164469555,155.68,0.00010959,2]
[337858526,1726164631755,-200.0,0.00012244,2]
[337858527,1726164631765,-432.73,0.0001227,2]
[337858528,1726164631774,-250.0,0.00012274,2]
[337858529,1726164631783,-532.67818431,0.000123,2]